fUSD/lending_fUSD_20260203
["ID","MTS","AMOUNT","RATE_DAILY","PERIOD"]
[404398941,1770104820833,-300.0,8.601e-05,2]
[404398942,1770104836057,-248.01469843,8.613e-05,2]
[404398943,1770104846399,400.0,8.6e-05,3]
[404398944,1770104848481,900.0,8.7e-05,3]
[404398945,1770104850580,1300.0,8.8e-05,3]
[404398946,1770104851348,-500.0,8.613e-05,2]
[404398947,1770104852670,1800.0,8.9e-05,3]
[404398948,1770104854761,2300.0,9e-05,3]
[404398952,1770104935778,1000.0,8.276e-05,2]
[404398954,1770105014185,166.66,8.4e-05,2]
[404398955,1770105023381,-166.66,8.678e-05,2]
[404398956,1770105027806,200.0,8.165e-05,2]
[404398960,1770105031665,-222.0,8.718e-05,2]
[404398961,1770105031674,-250.0,8.718e-05,2]
[404398962,1770105031683,-366.46222486,8.747e-05,2]
[404398963,1770105031692,-15.85027707,8.747e-05,2]
[404398964,1770105031705,-653.94812092,8.747e-05,2]
[404398965,1770105031717,-297.30121142,8.747e-05,2]
[404398966,1770105031728,-1706.07834497,8.747e-05,2]
[404398967,1770105031739,-2552.19117024,8.847e-05,2]
[404398968,1770105031749,-500.0,8.925e-05,2]
[404398969,1770105031758,-151.0,8.929e-05,2]
[404398970,1770105031767,-1200.0,8.93e-05,2]
[404398971,1770105031776,-507.83281515,8.93e-05,2]
[404398972,1770105031785,-259.45300993,8.931e-05,2]
[404398973,1770105031795,-500.0,8.931e-05,2]
[404398974,1770105031804,-500.0,8.931e-05,2]
[404398975,1770105031813,-500.0,8.931e-05,2]
[404398976,1770105031822,-183.84832265,8.931e-05,2]
[404398977,1770105031831,-500.0,8.931e-05,2]
[404398978,1770105031840,-500.0,8.931e-05,2]
[404398979,1770105031849,-500.0,8.931e-05,2]
[404398980,1770105031859,-500.0,8.931e-05,2]
[404398981,1770105031868,-500.0,8.931e-05,2]
[404398982,1770105031877,-500.0,8.931e-05,2]
[404398983,1770105031885,-500.0,8.931e-05,2]
[404398984,1770105031895,-500.0,8.931e-05,2]
[404398985,1770105031904,-500.0,8.931e-05,2]
[404398986,1770105031913,-500.0,8.931e-05,2]
[404398987,1770105031923,-500.0,8.931e-05,2]
[404398988,1770105031931,-500.0,8.931e-05,2]
[404398989,1770105031941,-500.0,8.931e-05,2]
[404398990,1770105031950,-500.0,8.931e-05,2]
[404398991,1770105031960,-500.0,8.931e-05,2]
[404398992,1770105031973,-500.0,8.931e-05,2]
[404398993,1770105031983,-500.0,8.931e-05,2]
[404398994,1770105031993,-500.0,8.931e-05,2]
[404398995,1770105032002,-500.0,8.931e-05,2]
[404398996,1770105032011,-500.0,8.931e-05,2]
[404398997,1770105032021,-590.09441614,8.931e-05,2]
[404398998,1770105032030,-500.0,8.931e-05,2]
[404398999,1770105032039,-500.0,8.931e-05,2]
[404399000,1770105032049,-500.0,8.931e-05,2]
[404399001,1770105032059,-500.0,8.931e-05,2]
[404399002,1770105032068,-500.0,8.931e-05,2]
[404399003,1770105032077,-500.0,8.931e-05,2]
[404399004,1770105032087,-500.0,8.931e-05,2]
[404399005,1770105032096,-52.90754957,8.931e-05,2]
[404399006,1770105032112,-447.09245043,8.931e-05,2]
[404399007,1770105032122,-500.0,8.931e-05,2]
[404399008,1770105032131,-500.0,8.931e-05,2]
[404399009,1770105032141,-500.0,8.931e-05,2]
[404399010,1770105032152,-500.0,8.931e-05,2]
[404399011,1770105032162,-500.0,8.931e-05,2]
[404399012,1770105032171,-500.0,8.931e-05,2]
[404399013,1770105032182,-500.0,8.931e-05,2]
[404399014,1770105032191,-500.0,8.931e-05,2]
[404399015,1770105032200,-295.53996656,8.931e-05,2]
[404399016,1770105032217,-204.46003344,8.931e-05,2]
[404399017,1770105032228,-500.0,8.931e-05,2]
[404399018,1770105032238,-500.0,8.931e-05,2]
[404399019,1770105032248,-500.0,8.931e-05,2]
[404399020,1770105032257,-299.00944161,8.931e-05,2]
[404399021,1770105032267,-300.0,8.931e-05,2]
[404399022,1770105032278,-150.0,8.931e-05,2]
[404399023,1770105032287,-426.0,8.931e-05,2]
[404399024,1770105032296,-1180.28684031,8.932e-05,2]
[404399025,1770105032329,-677.36324147,8.932e-05,2]
[404399026,1770105032340,-539.95972738,8.932e-05,2]
[404399027,1770105032351,-1210.11489401,8.932e-05,2]
[404399028,1770105032362,-289.88510599,8.932e-05,2]
[404399029,1770105032378,-39368.13714564,8.932e-05,2]
[404399030,1770105032391,-2542.81382997,8.932e-05,2]
[404399032,1770105037804,-1128.25873982,8.932e-05,2]
[404399033,1770105037817,-11837.7234997,8.932e-05,2]
[404399034,1770105037958,-3199866.42373808,8.932e-05,2]
[404399035,1770105037970,-655.01931614,8.932e-05,2]
[404399036,1770105037980,-157010.64970681,8.932e-05,2]
[404399037,1770105037991,-83693.36421468,8.932e-05,2]
[404399038,1770105038003,-2500.0,8.933e-05,2]
[404399039,1770105038013,-5734.49198754,8.933e-05,2]
[404399040,1770105038024,-3482.9174555,8.933e-05,2]
[404399041,1770105038035,-188.17333529,8.933e-05,2]
[404399042,1770105038045,-166.66,8.955e-05,2]
[404399043,1770105038054,-216.08,9.027e-05,3]
[404399044,1770105038064,-9999.99,9.049e-05,2]
[404399045,1770105038074,-999.99,9.049e-05,2]
[404399046,1770105038084,-1378.39,9.049e-05,2]
[404399047,1770105038094,-499.99,9.073e-05,2]
[404399048,1770105038106,-9999.99,9.073e-05,2]
[404399050,1770105038116,-1293.0,9.074e-05,2]
[404399052,1770105038125,-434.84,9.079e-05,2]
[404399054,1770105038135,-9999.99,9.079e-05,2]
[404399056,1770105038146,-150.99,9.091e-05,2]
[404399057,1770105038156,-299.99,9.091e-05,2]
[404399059,1770105038165,-1553.53,9.091e-05,2]
[404399060,1770105038174,-150.99,9.091e-05,2]
[404399061,1770105038184,-681.0,9.092e-05,2]
[404399062,1770105038193,-4599.547,9.132e-05,2]
[404399063,1770105038203,-378.169,9.132e-05,2]
[404399064,1770105038212,-500.0,9.133e-05,2]
[404399065,1770105038222,-500.0,9.133e-05,2]
[404399066,1770105038231,-500.0,9.133e-05,2]
[404399067,1770105038240,-173.07272258,9.133e-05,2]
[404399068,1770105038253,-500.0,9.133e-05,2]
[404399069,1770105038262,-500.0,9.133e-05,2]
[404399070,1770105038272,-500.0,9.133e-05,2]
[404399071,1770105038281,-500.0,9.133e-05,2]
[404399072,1770105038290,-500.0,9.133e-05,2]
[404399073,1770105038299,-500.0,9.133e-05,2]
[404399074,1770105038308,-500.0,9.133e-05,2]
[404399075,1770105038317,-500.0,9.133e-05,2]
[404399076,1770105038326,-500.0,9.133e-05,2]
[404399077,1770105038335,-500.0,9.133e-05,2]
[404399078,1770105038344,-500.0,9.133e-05,2]
[404399079,1770105038353,-500.0,9.133e-05,2]
[404399080,1770105038363,-500.0,9.133e-05,2]
[404399081,1770105038373,-1448.02,9.133e-05,2]
[404399082,1770105038382,-151.0,9.176e-05,2]
[404399083,1770105038391,-11194.87676119,9.179e-05,2]
[404399084,1770105038403,-828.80740724,9.179e-05,2]
[404399085,1770105038414,-386.1649995,9.179e-05,2]
[404399086,1770105038425,-2047.57159741,9.179e-05,2]
[404399087,1770105038437,-1103.16022683,9.179e-05,2]
[404399088,1770105038448,-1523.42760257,9.179e-05,2]
[404399090,1770105039788,-315.32000001,9.179e-05,2]
[404399091,1770105039976,-23291.64764528,9.179e-05,2]
[404399092,1770105039987,-255.56603465,9.179e-05,2]
[404399093,1770105039998,-1729.9999,9.179e-05,2]
[404399094,1770105040121,-395.92311807,9.179e-05,2]
[404399095,1770105040132,-400.88155885,9.179e-05,2]
[404399096,1770105040143,-843.40981153,9.179e-05,2]
[404399097,1770105040156,-955683.24333687,9.179e-05,2]
[404399098,1770105040165,-166.66,9.232e-05,2]
[404399099,1770105040175,-1000.0,9.311e-05,2]
[404399100,1770105040185,-1448.02,9.407e-05,2]
[404399101,1770105040194,-185.29,9.431e-05,2]
[404399102,1770105040204,-1852.42,9.445e-05,2]
[404399103,1770105040213,-609.94214869,9.445e-05,2]
[404399104,1770105040222,-500.0,9.447e-05,2]
[404399105,1770105040231,-254.47974801,9.447e-05,2]
[404399106,1770105040240,-500.0,9.447e-05,2]
[404399107,1770105040251,-250.0,9.461e-05,2]
[404399108,1770105040260,-300.0,9.474e-05,2]
[404399109,1770105040269,-166.66,9.509e-05,2]
[404399110,1770105040278,-300.0,9.59e-05,2]
[404399111,1770105040287,-250.0,9.59e-05,2]
[404399112,1770105040296,-183.04,9.64e-05,3]
[404399113,1770105040306,-1448.02,9.681e-05,2]
[404399114,1770105040315,-166.66,9.787e-05,2]
[404399115,1770105040325,-1680.0,9.822e-05,2]
[404399116,1770105040334,-420.0,9.824e-05,2]
[404399117,1770105040343,-255.0,9.824e-05,2]
[404399118,1770105040352,-33292.3487,9.931e-05,2]
[404399119,1770105040361,-1000.0,9.931e-05,2]
[404399120,1770105040370,-2617.0576,9.931e-05,2]
[404399121,1770105040380,-1448.02,9.955e-05,2]
[404399122,1770105040389,-98454.00131175,0.0001,2]
[404399123,1770105040398,-416.0,0.0001,2]
[404399124,1770105040407,-151.0,0.0001,2]
[404399125,1770105040417,-151.0,0.0001,2]
[404399126,1770105040426,-151.0,0.0001,2]
[404399127,1770105040435,-151.0,0.0001,2]
[404399128,1770105040445,-151.0,0.0001,2]
[404399129,1770105040454,-151.0,0.0001,2]
[404399130,1770105040463,-151.0,0.0001,2]
[404399131,1770105040473,-151.0,0.0001,2]
[404399132,1770105040483,-151.0,0.0001,2]
[404399133,1770105040492,-151.0,0.0001,2]
[404399134,1770105040502,-151.0,0.0001,2]
[404399135,1770105040512,-500.0,0.0001,2]
[404399136,1770105040522,-151.0,0.0001,2]
[404399137,1770105040532,-151.0,0.0001,2]
[404399138,1770105040806,-500.0,0.0001,2]
[404399139,1770105040817,-500.0,0.0001,2]
[404399140,1770105040827,-151.0,0.0001,2]
[404399141,1770105040838,-500.0,0.0001,2]
[404399142,1770105040848,-151.0,0.0001,2]
[404399143,1770105040857,-151.0,0.0001,2]
[404399144,1770105040867,-500.0,0.0001,2]
[404399145,1770105040876,-500.0,0.0001,2]
[404399146,1770105040887,-151.0,0.0001,2]
[404399147,1770105040897,-151.0,0.0001,2]
[404399148,1770105040908,-500.0,0.0001,2]
[404399149,1770105040918,-151.0,0.0001,2]
[404399150,1770105040928,-500.0,0.0001,2]
[404399151,1770105040937,-151.0,0.0001,2]
[404399152,1770105040946,-500.0,0.0001,2]
[404399153,1770105040956,-500.0,0.0001,2]
[404399154,1770105040965,-500.0,0.0001,2]
[404399155,1770105040975,-500.0,0.0001,2]
[404399156,1770105040984,-500.0,0.0001,2]
[404399157,1770105040993,-500.0,0.0001,2]
[404399158,1770105041007,-500.0,0.0001,2]
[404399159,1770105041016,-500.0,0.0001,2]
[404399160,1770105041026,-500.0,0.0001,2]
[404399161,1770105041036,-500.0,0.0001,2]
[404399162,1770105041045,-500.0,0.0001,2]
[404399163,1770105041055,-500.0,0.0001,2]
[404399164,1770105041064,-500.0,0.0001,2]
[404399165,1770105041073,-500.0,0.0001,2]
[404399166,1770105041083,-151.0,0.0001,2]
[404399167,1770105041092,-151.0,0.0001,2]
[404399168,1770105041101,-151.0,0.0001,2]
[404399169,1770105041115,-151.0,0.0001,2]
[404399170,1770105041124,-151.0,0.0001,2]
[404399171,1770105041134,-151.0,0.0001,2]
[404399172,1770105041144,-151.0,0.0001,2]
[404399173,1770105041155,-151.0,0.0001,2]
[404399174,1770105041164,-151.0,0.0001,2]
[404399175,1770105041174,-151.0,0.0001,2]
[404399176,1770105041185,-151.0,0.0001,2]
[404399177,1770105041194,-170.34718645,0.0001,2]
[404399178,1770105041203,-150.01414129,0.0001,2]
[404399179,1770105041216,-169.96770097,0.0001,2]
[404399180,1770105041226,-48729.45368276,0.00010049,2]
[404399181,1770105041235,-2943.13,0.00010147,2]
[404399182,1770105041246,-1448.02,0.00010228,2]
[404399183,1770105041256,-3453.1992,0.00010247,2]
[404399184,1770105041265,-1000.0,0.00010345,2]
[404399185,1770105041274,-1448.02,0.00010502,2]
[404399186,1770105041284,-185.29,0.0001061,2]
[404399187,1770105041293,-1448.02,0.00010776,2]
[404399188,1770105041303,-2351.0,0.00010805,2]
[404399189,1770105041312,-587.0,0.00010806,2]
[404399190,1770105041321,-433.0,0.00010806,2]
[404399191,1770105041330,-4555.60071217,0.000109,2]
[404399192,1770105041339,-4555.60071213,0.000109,2]
[404399193,1770105041349,-150.0,0.00010959,2]
[404399194,1770105041358,-166.66,0.00010959,2]
[404399195,1770105041367,-1448.02,0.0001105,2]
[404399196,1770105041376,-166.66,0.00011068,2]
[404399197,1770105041386,-3693.9000629,0.00011099,2]
[404399198,1770105041395,-3693.90006282,0.00011099,2]
[404399199,1770105041408,-3693.90006282,0.00011099,2]
[404399200,1770105041418,-64363.29794105,0.00011099,2]
[404399201,1770105041427,-64363.29794101,0.00011099,2]
[404399202,1770105041436,-64363.29794101,0.00011099,2]
[404399203,1770105041446,-64363.29794101,0.00011153,2]
[404399204,1770105041456,-3693.90006282,0.00011175,2]
[404399205,1770105041465,-166.66,0.00011178,2]
[404399206,1770105041474,-500.0,0.0001126,2]
[404399207,1770105041484,-166.66,0.00011288,2]
[404399208,1770105041493,-8897.00376981,0.00011299,2]
[404399209,1770105041502,-1448.02,0.00011324,2]
[404399210,1770105041512,-1000.0,0.0001138,2]
[404399211,1770105041521,-166.66,0.00011397,2]
[404399212,1770105041531,-4555.60071213,0.00011424,2]
[404399213,1770105041540,-166.66,0.00011507,2]
[404399214,1770105041550,-500.0,0.00011507,2]
[404399215,1770105041559,-250.0,0.00011519,2]
[404399216,1770105041568,-464.55,0.00011551,2]
[404399217,1770105041578,-1448.02,0.00011598,2]
[404399218,1770105041588,-215.68897206,0.00011666,2]
[404399219,1770105041597,-1386.37,0.00011691,2]
[404399220,1770105041610,-1448.02,0.00011872,2]
[404399221,1770105041619,-3292.0,0.00011885,2]
[404399222,1770105041628,-472.0,0.00011887,2]
[404399223,1770105041638,-736.0,0.00011887,2]
[404399224,1770105041647,-2702.16330158,0.000119,2]
[404399225,1770105041657,-64363.29794101,0.00011926,2]
[404399226,1770105041666,-3693.90006282,0.00011956,2]
[404399227,1770105041675,-294.94323537,0.00012074,2]
[404399228,1770105041685,-355.0,0.00012082,2]
[404399229,1770105041695,-1448.02,0.00012146,2]
[404399230,1770105041705,-1000.0,0.00012414,2]
[404399231,1770105041714,-1448.02,0.0001242,2]
[404399232,1770105041723,-1448.02,0.00012694,2]
[404399233,1770105041733,-64363.29794101,0.00012699,2]
[404399234,1770105041742,-4555.60071213,0.00012719,2]
[404399235,1770105041751,-3693.90006282,0.00012737,2]
[404399236,1770105041761,-1448.02,0.00012968,2]
[404399237,1770105041771,-500.0,0.00013041,2]
[404399238,1770105041780,-1252.0,0.00013074,2]
[404399239,1770105041789,-4609.0,0.00013074,2]
[404399240,1770105041801,-1448.02,0.00013242,2]
[404399241,1770105041811,-5734.49198754,0.00013367,2]
[404399242,1770105041820,-64363.29794101,0.00013472,2]
[404399243,1770105041830,-1448.02,0.00013516,2]
[404399244,1770105041839,-3693.90006282,0.00013518,2]
[404399245,1770105041848,-500.0,0.00013698,2]
[404399246,1770105041861,-500.0,0.00013698,2]
[404399247,1770105041870,-500.0,0.00013698,2]
[404399248,1770105041879,-438.97921379,0.00013698,2]
[404399249,1770105041888,-452.02134495,0.00013698,2]
[404399250,1770105041898,-199.38200897,0.00013698,2]
[404399251,1770105041907,-500.0,0.00013698,2]
[404399252,1770105041916,-500.0,0.00013698,2]
[404399253,1770105041926,-500.0,0.00013698,2]
[404399254,1770105041935,-500.0,0.00013698,2]
[404399255,1770105041944,-378.56522147,0.00013698,2]
[404399256,1770105041954,-500.0,0.00013698,2]
[404399257,1770105041964,-500.0,0.00013698,2]
[404399258,1770105041973,-500.0,0.00013698,2]
[404399259,1770105041983,-500.0,0.00013698,2]
[404399260,1770105041992,-500.0,0.00013698,2]
[404399261,1770105042004,-500.0,0.00013698,2]
[404399262,1770105042013,-500.0,0.00013698,2]
[404399263,1770105042022,-500.0,0.00013698,2]
[404399264,1770105042032,-500.0,0.00013698,2]
[404399265,1770105042041,-222.83714718,0.00013698,2]
[404399266,1770105042052,-500.0,0.00013698,2]
[404399267,1770105042062,-500.0,0.00013698,2]
[404399268,1770105042072,-500.0,0.00013698,2]
[404399269,1770105042081,-500.0,0.00013698,2]
[404399270,1770105042091,-500.0,0.00013698,2]
[404399271,1770105042100,-340.45778603,0.00013698,2]
[404399272,1770105042115,-500.0,0.00013698,2]
[404399273,1770105042124,-500.0,0.00013698,2]
[404399274,1770105042134,-500.0,0.00013698,2]
[404399275,1770105042144,-500.0,0.00013698,2]
[404399276,1770105042154,-545.58231824,0.00013698,2]
[404399277,1770105042163,-552.61203619,0.00013698,2]
[404399278,1770105042172,-500.0,0.00013698,2]
[404399279,1770105042184,-500.0,0.00013698,2]
[404399280,1770105042194,-500.0,0.00013698,2]
[404399281,1770105042203,-500.0,0.00013698,2]
[404399282,1770105042213,-500.0,0.00013698,2]
[404399283,1770105042222,-500.0,0.00013698,2]
[404399284,1770105042232,-500.0,0.00013698,2]
[404399285,1770105042241,-500.0,0.00013698,2]
[404399286,1770105042251,-500.0,0.00013698,2]
[404399287,1770105042261,-500.0,0.00013698,2]
[404399288,1770105042270,-500.0,0.00013698,2]
[404399289,1770105042280,-558.31479011,0.00013698,2]
[404399290,1770105042291,-509.06540724,0.00013698,2]
[404399291,1770105042301,-500.0,0.00013698,2]
[404399292,1770105042312,-4677.32,0.00013699,2]
[404399293,1770105042322,-500.0,0.000137,2]
[404399294,1770105042332,-500.0,0.000137,2]
[404399295,1770105042342,-500.0,0.000137,2]
[404399296,1770105042351,-500.0,0.000137,2]
[404399297,1770105042360,-1448.02,0.0001379,2]
[404399298,1770105042371,-4555.60071213,0.00014014,2]
[404399299,1770105042382,-1448.02,0.00014064,2]
[404399300,1770105042393,-64363.29794101,0.00014246,2]
[404399301,1770105042403,-1000.0,0.00014248,2]
[404399302,1770105042413,-1000.0,0.00014248,2]
[404399303,1770105042422,-1001.21553048,0.00014248,2]
[404399304,1770105042432,-3693.90006282,0.00014298,2]
[404399305,1770105042442,-1448.02,0.00014338,2]
[404399306,1770105042452,-6453.0,0.00014381,2]
[404399307,1770105042463,-4677.32,0.00014384,2]
[404399308,1770105042473,-607.0,0.00014387,2]
[404399309,1770105042484,-500.0,0.00014522,2]
[404399310,1770105042495,-322.6107,0.00014523,2]
[404399311,1770105042506,-500.0,0.00014523,2]
[404399312,1770105042515,-500.0,0.00014523,2]
[404399313,1770105042524,-500.0,0.00014523,2]
[404399314,1770105042535,-500.0,0.00014523,2]
[404399315,1770105042546,-500.0,0.00014523,2]
[404399316,1770105042556,-500.0,0.00014523,2]
[404399318,1770105042570,-500.0,0.00014523,2]
[404399319,1770105042582,-174.61919141,0.00014523,2]
[404399320,1770105042593,-500.0,0.00014523,2]
[404399321,1770105042603,-500.0,0.00014523,2]
[404399322,1770105042613,-500.0,0.00014523,2]
[404399323,1770105042623,-500.0,0.00014523,2]
[404399324,1770105042634,-721.12765535,0.00014523,2]
[404399325,1770105042644,-151.0,0.00014523,2]
[404399326,1770105042655,-156.587,0.00014523,2]
[404399327,1770105042668,-162.380719,0.00014523,2]
[404399328,1770105042678,-157.73690742,0.00014523,2]
[404399329,1770105042687,-209.40437684,0.00014523,2]
[404399330,1770105042696,-578.20924308,0.00014523,2]
[404399331,1770105042706,-217.15233878,0.00014578,2]
[404399332,1770105042715,-1448.02,0.00014612,2]
[404399333,1770105042725,-150.01414129,0.00014629,2]
[404399334,1770105042736,-225.18697532,0.00014633,2]
[404399335,1770105042746,-233.51889341,0.00014688,2]
[404399336,1770105042757,-242.15909246,0.00014743,2]
[404399337,1770105042766,-495.7739334,0.00014796,2]
[404399338,1770105042776,-369.98194845,0.00014796,2]
[404399339,1770105042785,-251.11897888,0.00014798,2]
[404399340,1770105042795,-260.4103811,0.00014853,2]
[404399341,1770105042804,-1448.02,0.00014886,2]
[404399342,1770105042814,-270.0455652,0.00014908,2]
[404399343,1770105042826,-280.03725112,0.00014963,2]
[404399344,1770105042836,-20008.0,0.00015,2]
[404399345,1770105042847,-250.0,0.00015,2]
[404399346,1770105042858,-290.39862941,0.00015018,2]
[404399347,1770105042868,-64363.29794101,0.00015019,2]
[404399348,1770105042877,-4677.32,0.00015068,2]
[404399349,1770105042887,-181.08010149,0.00015071,2]
[404399350,1770105042896,-301.1433787,0.00015073,2]
[404399351,1770105042905,-3693.90006282,0.00015079,2]
[404399352,1770105042915,-1448.02,0.0001516,2]
[404399353,1770105042924,-4555.60071213,0.00015309,2]
[404399354,1770105042934,-1448.02,0.00015434,2]
[404399355,1770105042945,-160.0,0.00015443,2]
[404399356,1770105042956,-500.0,0.00015589,2]
[404399357,1770105042965,-187.78006525,0.00015619,2]
[404399358,1770105042975,-464.55,0.00015657,2]
[404399359,1770105042985,-1448.02,0.00015708,2]
[404399360,1770105042994,-150.0,0.00015749,7]
[404399361,1770105043004,-223.657744,0.00015749,7]
[404399362,1770105043014,-297.315488,0.00015749,7]
[404399363,1770105043024,-370.973233,0.00015749,7]
[404399364,1770105043033,-444.630977,0.00015749,7]
[404399365,1770105043044,-4677.32,0.00015753,2]
[404399366,1770105043054,-64363.29794101,0.00015792,2]
[404399367,1770105043064,-9035.0,0.00015819,2]
[404399368,1770105043074,-3693.90006282,0.0001586,2]
[404399369,1770105043083,-334.5472959,0.00015892,2]
[404399370,1770105043093,-400.0,0.000159,5]
[404399371,1770105043102,-1000.0,0.00015918,2]
[404399372,1770105043117,-5000.0,0.0001596,2]
[404399373,1770105043127,-1448.02,0.00015982,2]
[404399374,1770105043137,-256.701042,0.00016,2]
[404399375,1770105043147,-9999.99,0.00016116,2]
[404399376,1770105043158,-1000.0,0.00016121,7]
[404399377,1770105043167,-194.72792766,0.00016167,2]
[404399378,1770105043178,-1448.22,0.00016256,2]
[404399379,1770105043188,-500.0,0.00016292,2]
[404399380,1770105043198,-150.0,0.00016322,7]
[404399381,1770105043208,-374.613885,0.00016322,7]
[404399382,1770105043218,-599.227771,0.00016322,7]
[404399383,1770105043227,-823.841657,0.00016322,7]
[404399384,1770105043236,-1048.455543,0.00016322,7]
[404399385,1770105043245,-1273.069429,0.00016322,7]
[404399386,1770105043255,-1497.683314,0.00016322,7]
[404399387,1770105043264,-1722.2972,0.00016322,7]
[404399388,1770105043274,-1946.911086,0.00016322,7]
[404399389,1770105043283,-2171.524972,0.00016322,7]
[404399390,1770105043292,-500.0,0.00016437,2]
[404399391,1770105043302,-775.48,0.00016438,2]
[404399392,1770105043311,-500.0,0.00016438,2]
[404399393,1770105043320,-330.22332732,0.00016438,2]
[404399394,1770105043330,-500.0,0.00016438,2]
[404399395,1770105043339,-500.0,0.00016438,2]
[404399396,1770105043348,-500.0,0.00016438,2]
[404399397,1770105043357,-500.0,0.00016438,2]
[404399398,1770105043366,-500.0,0.00016438,2]
[404399399,1770105043375,-500.0,0.00016438,2]
[404399400,1770105043385,-500.0,0.00016438,2]
[404399401,1770105043394,-500.0,0.00016438,2]
[404399402,1770105043404,-500.0,0.00016438,2]
[404399403,1770105043413,-500.0,0.00016438,2]
[404399404,1770105043422,-500.0,0.00016438,2]
[404399405,1770105043431,-500.0,0.00016438,2]
[404399406,1770105043441,-500.0,0.00016438,2]
[404399407,1770105043450,-500.0,0.00016438,2]
[404399408,1770105043459,-500.0,0.00016438,2]
[404399409,1770105043470,-500.0,0.00016438,2]
[404399410,1770105043481,-500.0,0.00016438,2]
[404399411,1770105043491,-500.0,0.00016438,2]
[404399412,1770105043500,-500.0,0.00016438,2]
[404399414,1770105043511,-500.0,0.00016438,2]
[404399416,1770105043521,-500.0,0.00016438,2]
[404399418,1770105043530,-257.06619581,0.00016438,2]
[404399419,1770105043539,-500.0,0.00016438,2]
[404399420,1770105043549,-2765.57985693,0.00016438,2]
[404399421,1770105043558,-2765.57985693,0.00016438,2]
[404399422,1770105043568,-2765.57985693,0.00016438,2]
[404399424,1770105043577,-2765.57985693,0.00016438,2]
[404399426,1770105043587,-2765.57985693,0.00016438,2]
[404399428,1770105043596,-2765.57985693,0.00016438,2]
[404399430,1770105043605,-2765.57985693,0.00016438,2]
[404399432,1770105043615,-2765.57985693,0.00016438,2]
[404399434,1770105043624,-2765.57985693,0.00016438,2]
[404399436,1770105043633,-2765.57985693,0.00016438,2]
[404399439,1770105043643,-2765.57985693,0.00016438,2]
[404399441,1770105043652,-2765.57985693,0.00016438,2]
[404399443,1770105043661,-2765.57985693,0.00016438,2]
[404399445,1770105043671,-2765.57985693,0.00016438,2]
[404399447,1770105043681,-2765.57985693,0.00016438,2]
[404399449,1770105043690,-2765.57985693,0.00016438,2]
[404399451,1770105043699,-2765.57985693,0.00016438,2]
[404399453,1770105043708,-2765.57985693,0.00016438,2]
[404399455,1770105043717,-2765.57985693,0.00016438,2]
[404399457,1770105043727,-2765.57985693,0.00016438,2]
[404399459,1770105043736,-2765.57985693,0.00016438,2]
[404399461,1770105043745,-2765.57985693,0.00016438,2]
[404399463,1770105043755,-2765.57985693,0.00016438,2]
[404399465,1770105043765,-2765.57985693,0.00016438,2]
[404399467,1770105043774,-2765.57985693,0.00016438,2]
[404399469,1770105043784,-2765.57985693,0.00016438,2]
[404399471,1770105043792,-2765.57985693,0.00016438,2]
[404399473,1770105043802,-2765.57985693,0.00016438,2]
[404399475,1770105043811,-2765.57985693,0.00016438,2]
[404399477,1770105043820,-2765.57985693,0.00016438,2]
[404399478,1770105043830,-2765.57985693,0.00016438,2]
[404399479,1770105043840,-2765.57985693,0.00016438,2]
[404399480,1770105043849,-2765.57985693,0.00016438,2]
[404399481,1770105043858,-2765.57985693,0.00016438,2]
[404399482,1770105043867,-2765.57985693,0.00016438,2]
[404399483,1770105043877,-2729.5575983,0.00016438,2]
[404399484,1770105043888,-2729.5575983,0.00016438,2]
[404399485,1770105043897,-2729.5575983,0.00016438,2]
[404399486,1770105043907,-2729.5575983,0.00016438,2]